[Event "British Rapidplay Championship 2023"]
[Site "Mercure Bradford, Bankfield Hotel"]
[Date "2023.04.16"]
[Round "9.1"]
[White "Dong, Bao Nghia"]
[Black "Ghasi, Ameet K"]
[Result "1/2-1/2"]
[TimeControl "15 minutes plus 10 seconds per move"]
[WhiteElo "2331"]
[BlackElo "2631"]

1. e4 {[%clk 00:15:08]} {[%emt 00:00:12]} c5 {[%clk 00:14:28]} {[%emt
00:00:52]} 2. Nf3 {[%clk 00:15:16]} {[%emt 00:00:02]} e6 {[%clk 00:14:37]}
{[%emt 00:00:01]} 3. d4 {[%clk 00:15:24]} {[%emt 00:00:02]} cxd4 {[%clk
00:14:46]} {[%emt 00:00:02]} 4. Nxd4 {[%clk 00:15:33]} {[%emt 00:00:01]} Nf6
{[%clk 00:14:55]} {[%emt 00:00:01]} 5. Nc3 {[%clk 00:15:41]} {[%emt 00:00:02]}
Nc6 {[%clk 00:15:04]} {[%emt 00:00:02]} 6. Nxc6 {[%clk 00:15:47]} {[%emt
00:00:03]} bxc6 {[%clk 00:15:11]} {[%emt 00:00:02]} 7. e5 {[%clk 00:15:55]}
{[%emt 00:00:02]} Nd5 {[%clk 00:15:16]} {[%emt 00:00:02]} 8. Ne4 {[%clk
00:16:03]} {[%emt 00:00:05]} Qa5+ {[%clk 00:15:14]} {[%emt 00:00:12]} 9. c3
{[%clk 00:14:39]} {[%emt 00:01:34]} Ba6 {[%clk 00:15:14]} {[%emt 00:00:11]} 10.
Bxa6 {[%clk 00:14:46]} {[%emt 00:00:02]} Qxa6 {[%clk 00:15:23]} {[%emt
00:00:01]} 11. Qe2 {[%emt 00:00:08]} Qxe2+ {[%clk 00:15:22]} {[%emt 00:00:06]}
12. Kxe2 {[%clk 00:15:01]} {[%emt 00:00:02]} f5 {[%clk 00:14:42]} {[%emt
00:00:51]} 13. Nd6+ {[%clk 00:13:13]} {[%emt 00:01:58]} Bxd6 {[%clk 00:12:42]}
{[%emt 00:02:10]} 14. exd6 {[%clk 00:13:21]} {[%emt 00:00:01]} Kf7 {[%clk
00:09:43]} {[%emt 00:03:10]} 15. c4 {[%clk 00:12:54]} {[%emt 00:00:37]} Nf6
{[%clk 00:07:08]} {[%emt 00:02:44]} 16. f3 {[%clk 00:09:34]} {[%emt 00:03:30]}
Rhb8 {[%clk 00:05:47]} {[%emt 00:01:31]} 17. b3 {[%clk 00:08:03]} {[%emt
00:01:42]} a5 {[%clk 00:05:56]} 18. Bd2 {[%clk 00:08:12]} {[%emt 00:00:01]} c5
{[%clk 00:05:38]} {[%emt 00:00:28]} 19. Bc3 {[%clk 00:07:42]} {[%emt 00:00:39]}
a4 {[%clk 00:05:23]} {[%emt 00:00:26]} 20. Rhb1 {[%clk 00:07:50]} {[%emt
00:00:01]} Ra6 {[%clk 00:04:41]} {[%emt 00:00:54]} 21. Be5 {[%clk 00:07:50]}
{[%emt 00:00:08]} Ne8 {[%clk 00:04:36]} {[%emt 00:00:15]} 22. bxa4 {[%clk
00:07:41]} {[%emt 00:00:19]} Rxb1 {[%clk 00:04:03]} {[%emt 00:00:44]} 23. Rxb1
{[%clk 00:07:50]} {[%emt 00:00:01]} Nxd6 {[%clk 00:04:12]} {[%emt 00:00:01]} 24.
Bxd6 {[%clk 00:06:46]} {[%emt 00:01:14]} Rxd6 {[%clk 00:04:20]} {[%emt
00:00:01]} 25. Rb5 {[%clk 00:06:54]} {[%emt 00:00:02]} Ra6 {[%clk 00:04:22]}
{[%emt 00:00:08]} 26. a5 {[%clk 00:07:03]} {[%emt 00:00:01]} d6 {[%clk
00:04:31]} 27. Kd3 {[%clk 00:07:12]} {[%emt 00:00:01]} Kf6 {[%clk 00:04:38]}
{[%emt 00:00:03]} 28. f4 {[%clk 00:07:10]} {[%emt 00:00:12]} g5 {[%clk
00:04:26]} {[%emt 00:00:23]} 29. g3 {[%clk 00:05:41]} {[%emt 00:01:39]} gxf4
{[%clk 00:03:29]} {[%emt 00:01:07]} 30. gxf4 {[%clk 00:05:48]} {[%emt
00:00:03]} e5 {[%clk 00:03:32]} {[%emt 00:00:07]} 31. Rb6 {[%clk 00:05:43]}
{[%emt 00:00:15]} e4+ {[%clk 00:03:40]} {[%emt 00:00:02]} 32. Kc3 {[%clk
00:05:31]} {[%emt 00:00:21]} Rxa5 {[%clk 00:03:49]} {[%emt 00:00:02]} 33. Rxd6+
{[%clk 00:05:39]} {[%emt 00:00:02]} Kf7 {[%clk 00:03:51]} {[%emt 00:00:07]} 34.
Rd5 {[%clk 00:05:13]} {[%emt 00:00:36]} Rxa2 {[%clk 00:02:50]} {[%emt
00:01:12]} 35. Rxf5+ {[%clk 00:04:52]} {[%emt 00:00:31]} Kg6 {[%clk 00:02:11]}
{[%emt 00:00:49]} 36. Rg5+ {[%clk 00:04:36]} {[%emt 00:00:25]} Kf6 {[%clk
00:02:16]} {[%emt 00:00:05]} 37. Rxc5 {[%clk 00:04:44]} {[%emt 00:00:02]} Rxh2
{[%clk 00:02:24]} {[%emt 00:00:03]} 38. Kd4 {[%clk 00:04:52]} {[%emt 00:00:01]}
h5 {[%clk 00:01:30]} {[%emt 00:01:04]} 39. Kxe4 {[%clk 00:04:57]} {[%emt
00:00:05]} Re2+ {[%clk 00:01:30]} {[%emt 00:00:09]} 40. Kd3 {[%clk 00:04:31]}
{[%emt 00:00:36]} Rh2 {[%clk 00:01:15]} {[%emt 00:00:27]} 41. Re5 {[%clk
00:04:28]} {[%emt 00:00:12]} Rf2 {[%clk 00:01:21]} {[%emt 00:00:04]} 42. Rxh5
{[%clk 00:03:40]} {[%emt 00:00:58]} Rxf4 {[%clk 00:01:29]} {[%emt 00:00:03]} 43.
Rd5 {[%clk 00:03:49]} {[%emt 00:00:01]} Ke6 {[%clk 00:01:08]} {[%emt 00:00:30]}
44. Kc3 {[%clk 00:03:57]} {[%emt 00:00:02]} Rf8 {[%clk 00:00:53]} {[%emt
00:00:25]} 45. Rd1 {[%clk 00:04:05]} {[%emt 00:00:02]} Rc8 {[%clk 00:00:57]}
{[%emt 00:00:06]} 46. Rd5 {[%clk 00:03:57]} {[%emt 00:00:18]} Rb8 {[%clk
00:00:51]} {[%emt 00:00:17]} 47. Kd4 {[%clk 00:03:25]} {[%emt 00:00:41]} Ra8
{[%clk 00:00:41]} {[%emt 00:00:20]} 48. Kc5 {[%clk 00:01:19]} {[%emt 00:02:16]}
Rc8+ {[%clk 00:00:46]} {[%emt 00:00:05]} 49. Kb4 {[%clk 00:01:28]} Rb8+ {[%clk
00:00:30]} {[%emt 00:00:26]} 50. Rb5 {[%clk 00:01:32]} {[%emt 00:00:06]} Rc8
{[%clk 00:00:34]} {[%emt 00:00:07]} 51. Rb6+ {[%clk 00:01:13]} {[%emt
00:00:29]} Kd7 {[%clk 00:00:33]} {[%emt 00:00:11]} 52. Kb5 {[%clk 00:01:22]}
{[%emt 00:00:01]} Rh8 {[%clk 00:00:16]} {[%emt 00:00:27]} 53. c5 {[%clk
00:00:19]} {[%emt 00:01:13]} Rh1 {[%clk 00:00:14]} {[%emt 00:00:11]} 54. Rb7+
{[%clk 00:00:16]} {[%emt 00:00:14]} Kc8 {[%clk 00:00:23]} 55. Rg7 {[%clk
00:00:20]} {[%emt 00:00:05]} Rh6 {[%clk 00:00:32]} {[%emt 00:00:01]} 56. Rg8+
{[%clk 00:00:15]} {[%emt 00:00:16]} Kc7 {[%clk 00:00:40]} {[%emt 00:00:01]} 57.
Rg7+ {[%clk 00:00:21]} {[%emt 00:00:04]} 1/2-1/2

[Event "British Rapidplay Championship 2023"]
[Site "Mercure Bradford, Bankfield Hotel"]
[Date "2023.04.16"]
[Round "9.2"]
[White "Pitcher, John"]
[Black "Gormally, Daniel W"]
[Result "0-1"]
[TimeControl "15 minutes plus 10 seconds per move"]
[WhiteElo "2358"]
[BlackElo "2570"]

1. e4 {[%clk 00:15:18]} {[%emt 00:00:02]} c5 {[%clk 00:15:19]} 2. Nf3 {[%clk
00:15:25]} {[%emt 00:00:02]} d6 {[%clk 00:15:29]} {[%emt 00:00:01]} 3. Bb5+
{[%clk 00:15:32]} {[%emt 00:00:03]} Nd7 {[%clk 00:15:38]} 4. Ba4 {[%clk
00:15:39]} {[%emt 00:00:04]} Ngf6 {[%clk 00:15:46]} {[%emt 00:00:02]} 5. O-O
{[%clk 00:15:45]} {[%emt 00:00:03]} e6 {[%clk 00:15:55]} {[%emt 00:00:01]} 6.
Re1 {[%clk 00:15:53]} {[%emt 00:00:02]} Be7 {[%clk 00:16:04]} 7. c3 {[%clk
00:16:01]} {[%emt 00:00:02]} O-O {[%clk 00:16:06]} {[%emt 00:00:08]} 8. d4
{[%clk 00:16:09]} {[%emt 00:00:02]} cxd4 {[%clk 00:14:41]} {[%emt 00:01:35]} 9.
cxd4 {[%clk 00:16:17]} {[%emt 00:00:02]} a6 {[%clk 00:14:51]} 10. Nc3 {[%clk
00:16:03]} {[%emt 00:00:25]} b5 {[%clk 00:14:56]} {[%emt 00:00:04]} 11. Bc2
{[%clk 00:16:11]} {[%emt 00:00:02]} Bb7 {[%clk 00:15:06]} 12. a3 {[%clk
00:15:02]} {[%emt 00:01:19]} Rc8 {[%clk 00:15:12]} {[%emt 00:00:04]} 13. e5
{[%clk 00:14:05]} {[%emt 00:01:06]} dxe5 {[%clk 00:15:20]} {[%emt 00:00:02]} 14.
dxe5 {[%clk 00:14:13]} {[%emt 00:00:02]} Nd5 {[%clk 00:15:30]} 15. Qd3 {[%clk
00:14:19]} {[%emt 00:00:04]} g6 {[%clk 00:15:39]} 16. Bh6 {[%clk 00:14:27]}
{[%emt 00:00:03]} Re8 {[%clk 00:15:45]} {[%emt 00:00:04]} 17. Nxd5 {[%clk
00:13:19]} {[%emt 00:01:18]} Bxd5 {[%clk 00:15:53]} {[%emt 00:00:02]} 18. Rac1
{[%clk 00:13:21]} {[%emt 00:00:08]} Qb6 {[%clk 00:15:11]} {[%emt 00:00:53]} 19.
Ng5 {[%clk 00:12:25]} {[%emt 00:01:05]} Rc4 {[%clk 00:13:28]} {[%emt 00:01:53]}
20. Rcd1 {[%clk 00:10:25]} {[%emt 00:02:10]} Rh4 {[%clk 00:12:46]} {[%emt
00:00:53]} 21. Nxf7 {[%clk 00:08:20]} {[%emt 00:02:14]} Kxf7 {[%clk 00:12:54]}
{[%emt 00:00:03]} 22. Be3 {[%clk 00:08:29]} Qc6 {[%clk 00:12:15]} {[%emt
00:00:49]} 23. Bb3 {[%clk 00:08:25]} {[%emt 00:00:14]} Bxb3 {[%clk 00:11:36]}
{[%emt 00:00:50]} 24. Qxb3 {[%clk 00:08:33]} {[%emt 00:00:01]} Nxe5 {[%clk
00:10:34]} {[%emt 00:01:13]} 25. Bd4 {[%clk 00:08:26]} {[%emt 00:00:16]} Rg4
{[%clk 00:08:36]} {[%emt 00:02:08]} 26. Qh3 {[%clk 00:08:13]} {[%emt 00:00:23]}
Nf3+ {[%clk 00:08:45]} {[%emt 00:00:02]} 27. Kh1 {[%clk 00:08:17]} {[%emt
00:00:06]} Rxd4 {[%clk 00:08:39]} {[%emt 00:00:15]} 28. Qxh7+ {[%clk 00:08:14]}
{[%emt 00:00:12]} Kf6 {[%clk 00:08:45]} {[%emt 00:00:06]} 29. Rxd4 {[%clk
00:08:08]} {[%emt 00:00:16]} Nxd4 {[%clk 00:08:53]} {[%emt 00:00:01]} 30. Qh4+
{[%clk 00:08:16]} {[%emt 00:00:02]} Kg7 {[%clk 00:08:55]} {[%emt 00:00:08]} 31.
Qxd4+ {[%clk 00:08:24]} {[%emt 00:00:02]} Bf6 {[%clk 00:09:05]} 0-1

[Event "British Rapidplay Championship 2023"]
[Site "Mercure Bradford, Bankfield Hotel"]
[Date "2023.04.16"]
[Round "9.3"]
[White "Makkar, Rajat"]
[Black "Hryshchenko, Kamila"]
[Result "1-0"]
[TimeControl "15 minutes plus 10 seconds per move"]
[WhiteElo "2297"]
[BlackElo "2019"]

1. e4 {[%clk 00:15:19]} {[%emt 00:00:01]} d6 {[%clk 00:15:19]} {[%emt
00:00:01]} 2. d4 {[%clk 00:15:25]} {[%emt 00:00:04]} g6 {[%clk 00:15:27]}
{[%emt 00:00:02]} 3. Nf3 {[%clk 00:15:32]} {[%emt 00:00:02]} Bg7 {[%clk
00:15:36]} {[%emt 00:00:02]} 4. Be3 {[%clk 00:15:40]} {[%emt 00:00:01]} c6
{[%clk 00:15:41]} {[%emt 00:00:06]} 5. Qd2 {[%clk 00:15:29]} {[%emt 00:00:20]}
Nf6 {[%clk 00:15:44]} {[%emt 00:00:08]} 6. Nc3 {[%clk 00:15:35]} {[%emt
00:00:04]} b5 {[%clk 00:15:21]} {[%emt 00:00:33]} 7. Bh6 {[%clk 00:15:41]}
{[%emt 00:00:03]} Bxh6 {[%clk 00:15:02]} {[%emt 00:00:29]} 8. Qxh6 {[%clk
00:15:49]} {[%emt 00:00:03]} Qa5 {[%clk 00:15:05]} {[%emt 00:00:07]} 9. Bd3
{[%clk 00:14:50]} {[%emt 00:01:08]} b4 {[%clk 00:14:28]} {[%emt 00:00:47]} 10.
Ne2 {[%clk 00:14:02]} {[%emt 00:00:58]} Qh5 {[%clk 00:10:56]} {[%emt 00:03:43]}
11. Qxh5 {[%clk 00:13:30]} {[%emt 00:00:42]} Nxh5 {[%clk 00:11:01]} {[%emt
00:00:05]} 12. e5 {[%clk 00:13:39]} {[%emt 00:00:01]} O-O {[%clk 00:10:25]}
{[%emt 00:00:46]} 13. a3 {[%clk 00:13:42]} {[%emt 00:00:07]} Ba6 {[%clk
00:09:48]} {[%emt 00:00:47]} 14. axb4 {[%clk 00:12:02]} {[%emt 00:01:50]} Bxd3
{[%clk 00:09:40]} {[%emt 00:00:17]} 15. cxd3 {[%clk 00:12:11]} {[%emt
00:00:02]} Nd7 {[%clk 00:07:43]} {[%emt 00:02:06]} 16. g4 {[%clk 00:10:59]}
{[%emt 00:01:23]} Ng7 {[%clk 00:07:42]} {[%emt 00:00:11]} 17. Nc3 {[%clk
00:11:07]} {[%emt 00:00:01]} f6 {[%clk 00:03:48]} {[%emt 00:04:05]} 18. exd6
{[%clk 00:10:22]} {[%emt 00:00:56]} exd6 {[%clk 00:03:55]} {[%emt 00:00:02]} 19.
b5 {[%clk 00:09:29]} {[%emt 00:01:04]} c5 {[%clk 00:02:29]} {[%emt 00:01:34]}
20. d5 {[%clk 00:09:28]} {[%emt 00:00:11]} Nb6 {[%clk 00:01:50]} {[%emt
00:00:49]} 21. Kd2 {[%clk 00:09:09]} {[%emt 00:00:30]} Ne8 {[%emt 00:01:57]} 22.
Rhe1 {[%clk 00:07:31]} Nc7 {[%clk 00:01:37]} {[%emt 00:00:24]} 23. Re7 {[%clk
00:07:40]} {[%emt 00:00:01]} Rf7 {[%clk 00:01:41]} {[%emt 00:00:06]} 24. Rxf7
{[%clk 00:07:37]} {[%emt 00:00:14]} Kxf7 {[%clk 00:01:49]} {[%emt 00:00:01]} 25.
d4 {[%clk 00:07:29]} {[%emt 00:00:18]} c4 {[%clk 00:01:16]} {[%emt 00:00:43]}
26. Ng1 {[%clk 00:06:41]} {[%emt 00:00:58]} Ncxd5 {[%clk 00:00:52]} {[%emt
00:00:34]} 27. Nxd5 {[%clk 00:06:49]} {[%emt 00:00:02]} Nxd5 {[%clk 00:01:00]}
{[%emt 00:00:01]} 28. Ne2 {[%clk 00:06:58]} f5 {[%clk 00:00:30]} {[%emt
00:00:41]} 29. gxf5 {[%clk 00:06:19]} {[%emt 00:00:49]} gxf5 {[%clk 00:00:38]}
{[%emt 00:00:02]} 30. Nc3 {[%clk 00:06:27]} {[%emt 00:00:01]} Nb6 {[%clk
00:00:46]} {[%emt 00:00:03]} 31. Ke3 {[%clk 00:06:32]} {[%emt 00:00:06]} Kf6
{[%clk 00:00:53]} {[%emt 00:00:02]} 32. Kf4 {[%clk 00:06:24]} {[%emt 00:00:18]}
h6 {[%clk 00:00:31]} {[%emt 00:00:32]} 33. h3 {[%clk 00:06:29]} {[%emt
00:00:06]} Kg6 {[%clk 00:00:19]} {[%emt 00:00:21]} 34. Rg1+ {[%clk 00:06:22]}
{[%emt 00:00:16]} Kf6 {[%clk 00:00:27]} {[%emt 00:00:03]} 35. h4 {[%clk
00:06:31]} {[%emt 00:00:01]} a6 {[%clk 00:00:15]} {[%emt 00:00:21]} 36. bxa6
{[%clk 00:06:03]} {[%emt 00:00:39]} Rxa6 {[%clk 00:00:23]} {[%emt 00:00:03]} 37.
h5 {[%clk 00:06:12]} Na4 {[%clk 00:00:15]} {[%emt 00:00:19]} 38. Ra1 {[%clk
00:05:17]} {[%emt 00:01:04]} Nc5 {[%clk 00:00:13]} {[%emt 00:00:11]} 39. Nd5+
{[%clk 00:05:26]} {[%emt 00:00:02]} Kf7 {[%clk 00:00:19]} {[%emt 00:00:04]} 40.
Rxa6 {[%clk 00:05:34]} {[%emt 00:00:02]} Nxa6 {[%clk 00:00:28]} {[%emt
00:00:01]} 41. Kxf5 {[%clk 00:05:43]} {[%emt 00:00:02]} Nb8 {[%clk 00:00:26]}
{[%emt 00:00:12]} 42. Nb6 {[%clk 00:05:26]} {[%emt 00:00:27]} Nc6 {[%clk
00:00:33]} {[%emt 00:00:02]} 43. d5 {[%clk 00:05:34]} {[%emt 00:00:02]} Nb4
{[%clk 00:00:28]} {[%emt 00:00:15]} 44. Nxc4 {[%clk 00:05:29]} {[%emt
00:00:14]} Nxd5 {[%clk 00:00:34]} {[%emt 00:00:04]} 45. Nxd6+ {[%clk 00:05:37]}
{[%emt 00:00:02]} Ke7 {[%clk 00:00:43]} 46. Ke5 {[%clk 00:05:23]} {[%emt
00:00:23]} Nf6 {[%clk 00:00:49]} {[%emt 00:00:05]} 47. Nf5+ {[%clk 00:05:32]}
{[%emt 00:00:01]} Kf7 {[%clk 00:00:56]} {[%emt 00:00:03]} 48. Nxh6+ {[%clk
00:05:40]} {[%emt 00:00:01]} 1-0

[Event "British Rapidplay Championship 2023"]
[Site "Mercure Bradford, Bankfield Hotel"]
[Date "2023.04.16"]
[Round "9.4"]
[White "Cook, Phil"]
[Black "Wells, Peter K"]
[Result "0-1"]
[TimeControl "15 minutes plus 10 seconds per move"]
[WhiteElo "2126"]
[BlackElo "2466"]

1. c4 {[%clk 00:15:16]} {[%emt 00:00:02]} e6 {[%clk 00:15:12]} {[%emt
00:00:09]} 2. Nf3 {[%clk 00:15:23]} {[%emt 00:00:04]} Nf6 {[%clk 00:15:08]}
{[%emt 00:00:14]} 3. g3 {[%clk 00:15:29]} {[%emt 00:00:04]} a6 {[%clk
00:15:00]} {[%emt 00:00:18]} 4. Bg2 {[%clk 00:15:01]} {[%emt 00:00:37]} b5
{[%clk 00:15:00]} {[%emt 00:00:10]} 5. b3 {[%clk 00:14:26]} {[%emt 00:00:46]}
c5 {[%clk 00:14:29]} {[%emt 00:00:41]} 6. O-O {[%clk 00:14:28]} {[%emt
00:00:08]} Bb7 {[%clk 00:14:02]} {[%emt 00:00:37]} 7. Bb2 {[%clk 00:13:35]}
{[%emt 00:01:03]} Be7 {[%clk 00:13:59]} {[%emt 00:00:12]} 8. cxb5 {[%clk
00:11:41]} {[%emt 00:02:05]} axb5 {[%clk 00:14:03]} {[%emt 00:00:05]} 9. Nc3
{[%clk 00:11:42]} {[%emt 00:00:09]} b4 {[%clk 00:12:14]} {[%emt 00:01:59]} 10.
Na4 {[%clk 00:11:43]} {[%emt 00:00:10]} d6 {[%clk 00:12:20]} {[%emt 00:00:04]}
11. a3 {[%clk 00:10:11]} {[%emt 00:01:42]} bxa3 {[%clk 00:10:10]} {[%emt
00:02:20]} 12. Rxa3 {[%emt 00:00:40]} e5 {[%clk 00:09:29]} {[%emt 00:00:49]} 13.
e3 {[%clk 00:08:41]} {[%emt 00:01:12]} Nbd7 {[%clk 00:08:32]} {[%emt 00:01:08]}
14. d4 {[%clk 00:08:39]} {[%emt 00:00:11]} cxd4 {[%clk 00:08:36]} {[%emt
00:00:07]} 15. exd4 {[%clk 00:08:45]} {[%emt 00:00:03]} e4 {[%clk 00:08:37]}
{[%emt 00:00:09]} 16. Nd2 {[%clk 00:08:10]} {[%emt 00:00:44]} d5 {[%clk
00:08:16]} {[%emt 00:00:31]} 17. Ra2 {[%clk 00:07:50]} {[%emt 00:00:31]} O-O
{[%clk 00:07:55]} {[%emt 00:00:31]} 18. Re1 {[%clk 00:07:32]} {[%emt 00:00:28]}
Re8 {[%clk 00:07:35]} {[%emt 00:00:31]} 19. Nf1 {[%clk 00:06:52]} {[%emt
00:00:49]} Bb4 {[%clk 00:07:04]} {[%emt 00:00:41]} 20. Re2 {[%clk 00:05:56]}
{[%emt 00:01:06]} Ba6 {[%clk 00:05:10]} {[%emt 00:02:04]} 21. Rc2 {[%clk
00:05:46]} {[%emt 00:00:20]} Bxf1 {[%clk 00:04:29]} {[%emt 00:00:51]} 22. Qxf1
{[%clk 00:05:17]} {[%emt 00:00:38]} e3 {[%clk 00:04:38]} {[%emt 00:00:02]} 23.
fxe3 {[%clk 00:02:10]} {[%emt 00:03:16]} Rxe3 {[%clk 00:04:46]} {[%emt
00:00:03]} 24. Re2 {[%clk 00:01:59]} {[%emt 00:00:20]} Rxb3 {[%clk 00:04:27]}
{[%emt 00:00:30]} 25. Qd1 {[%clk 00:02:00]} {[%emt 00:00:08]} Rxb2 {[%clk
00:04:16]} {[%emt 00:00:22]} 26. Rexb2 {[%clk 00:02:07]} {[%emt 00:00:03]} Qe7
{[%clk 00:04:04]} {[%emt 00:00:23]} 27. Re2 {[%clk 00:01:26]} {[%emt 00:00:50]}
Qd6 {[%clk 00:04:08]} {[%emt 00:00:06]} 28. Qb3 {[%clk 00:01:24]} {[%emt
00:00:11]} h5 {[%clk 00:04:01]} {[%emt 00:00:18]} 29. Nb2 {[%clk 00:01:17]}
{[%emt 00:00:17]} Rxa2 {[%clk 00:03:39]} {[%emt 00:00:33]} 30. Qxa2 {[%clk
00:01:25]} Qb6 {[%clk 00:03:48]} 31. h3 {[%clk 00:00:43]} {[%emt 00:00:53]}
Qxd4+ {[%clk 00:03:50]} {[%emt 00:00:08]} 32. Kh2 {[%clk 00:00:51]} {[%emt
00:00:02]} h4 {[%clk 00:02:56]} {[%emt 00:01:04]} 33. Qb3 {[%clk 00:00:47]}
{[%emt 00:00:14]} Bc5 {[%clk 00:02:04]} {[%emt 00:01:03]} 34. Qd1 {[%clk
00:00:38]} {[%emt 00:00:18]} Qc3 {[%clk 00:01:21]} {[%emt 00:00:53]} 35. gxh4
{[%clk 00:00:29]} {[%emt 00:00:19]} Bd6+ {[%clk 00:01:21]} {[%emt 00:00:11]} 36.
Kg1 {[%clk 00:00:26]} {[%emt 00:00:12]} Ne5 {[%clk 00:01:18]} {[%emt 00:00:13]}
37. Bxd5 {[%clk 00:00:18]} {[%emt 00:00:18]} Qxh3 {[%clk 00:00:44]} {[%emt
00:00:44]} 38. Rg2 {[%clk 00:00:22]} {[%emt 00:00:06]} Bc5+ {[%clk 00:00:49]}
{[%emt 00:00:05]} 39. Kf1 {[%clk 00:00:28]} {[%emt 00:00:04]} Qh1+ {[%clk
00:00:26]} {[%emt 00:00:34]} 40. Ke2 {[%clk 00:00:32]} {[%emt 00:00:06]} Qxd1+
{[%clk 00:00:31]} {[%emt 00:00:05]} 41. Nxd1 {[%clk 00:00:38]} {[%emt
00:00:04]} Nxd5 {[%clk 00:00:39]} {[%emt 00:00:02]} 42. Kd2 {[%clk 00:00:18]}
{[%emt 00:00:29]} Nf3+ {[%clk 00:00:21]} {[%emt 00:00:29]} 43. Ke2 {[%clk
00:00:14]} {[%emt 00:00:13]} Nxh4 {[%clk 00:00:21]} {[%emt 00:00:10]} 44. Rg4
{[%clk 00:00:22]} {[%emt 00:00:03]} Be7 {[%clk 00:00:14]} {[%emt 00:00:16]} 45.
Ne3 {[%clk 00:00:26]} {[%emt 00:00:06]} Nxe3 {[%clk 00:00:22]} {[%emt
00:00:02]} 46. Kxe3 {[%clk 00:00:35]} {[%emt 00:00:01]} f5 {[%clk 00:00:30]}
{[%emt 00:00:03]} 47. Rg1 {[%clk 00:00:39]} {[%emt 00:00:05]} Bc5+ {[%clk
00:00:40]} {[%emt 00:00:01]} 48. Ke4 {[%clk 00:00:00]} {[%emt 00:00:09]} 0-1